bitfinex/quotes_ETHUSD_20260103
["timestamp","ask_amount","ask_price","bid_price","bid_amount"]
[1767458933808,0.00280144,3108.6,3108.4,3.59734692]
[1767458934012,0.00280144,3108.6,3108.3,6.43438534]
[1767458934207,0.00280144,3108.6,3108.3,10.03173226]
[1767458934386,0.00280144,3108.6,3108.4,3.59734692]
[1767458934581,0.00280144,3108.6,3108.4,6.81435246]
[1767458935611,0.00280144,3108.6,3108.4,3.21700554]
[1767458935913,0.00280144,3108.6,3108.3,3.59734692]
[1767458936414,0.00280144,3108.6,3108.2,6.43459236]
[1767458936594,0.00280144,3108.6,3108.2,11.17505749]
[1767458936909,0.00280144,3108.6,3108.4,3.21708917]
[1767458937209,0.00280144,3108.6,3108.4,6.81443609]
[1767458938108,0.00280144,3108.6,3108.4,3.21708917]
[1767458938492,0.00280144,3108.6,3108.5,3.59734692]
[1767458939001,0.00280144,3108.6,3108.4,3.21708917]
[1767458939203,0.00280144,3108.6,3108.4,6.81443609]
[1767458939713,0.00280144,3108.6,3108.5,3.21698568]
[1767458940385,0.00280144,3108.6,3108.5,7.02858567]
[1767458940780,0.00280144,3108.6,3108.3,6.43438062]
[1767458940985,0.00280144,3108.6,3108.4,3.81159999]
[1767458941408,1e-08,3108.7,3108.4,3.81159999]
[1767458941579,1e-08,3108.7,3108.3,6.43438062]
[1767458941786,1e-08,3108.7,3108.3,11.48890145]
[1767458941986,1e-08,3108.7,3108.4,3.81159999]
[1767458942485,1e-08,3108.7,3108.3,7.67730146]
[1767458942823,0.002,3108.8,3108.7,3.81159999]
[1767458943482,0.16340316,3109.0,3108.5,6.43397136]
[1767458943681,0.00280128,3109.0,3108.5,10.24557135]
[1767458943918,0.00280128,3109.0,3108.6,3.81159999]
[1767458944284,0.00280128,3109.0,3108.5,7.58282058]
[1767458944518,0.00280128,3109.0,3108.5,11.39442057]
[1767458944816,0.00280128,3109.0,3108.6,3.81159999]
[1767458945014,0.00280128,3109.0,3108.7,3.81159999]
[1767458946217,0.00280128,3109.0,3108.6,3.21685209]
[1767458946424,0.18565097,3109.0,3108.6,3.21685209]
[1767458946583,0.00280128,3109.0,3108.7,3.81159999]
[1767458947430,0.19290041,3109.0,3108.7,3.21676681]
[1767458947603,0.00280128,3109.0,3108.7,3.21676681]
[1767458948326,0.20012714,3109.0,3108.7,3.21676681]
[1767458948629,0.00280128,3109.0,3108.7,7.0283668]
[1767458948992,0.00280128,3109.0,3108.7,3.21676681]
[1767458949186,0.00280128,3109.0,3108.7,7.0283668]
[1767458949844,0.00280128,3109.0,3108.7,3.21676681]
[1767458950136,0.00280128,3109.0,3108.7,7.0283668]
[1767458950508,0.00280128,3109.0,3108.6,3.21688219]
[1767458950726,0.00280128,3109.0,3108.6,7.02848218]
[1767458950917,0.00280128,3109.0,3108.7,3.81159999]
[1767458952592,0.00280128,3109.0,3108.7,7.02829521]
[1767458952794,0.00280128,3109.0,3108.8,3.81159999]
[1767458953121,0.00280128,3109.0,3108.7,3.21669522]
[1767458953443,0.00280128,3109.0,3108.8,3.81159999]
[1767458953960,0.00280128,3109.0,3108.7,3.21669522]
[1767458954095,0.00280128,3109.0,3108.7,3.81159999]
[1767458954694,0.0013762,3109.4,3109.0,3.81159999]
[1767458954900,0.0013762,3109.4,3109.0,3.81240111]
[1767458955716,0.0013762,3109.4,3109.0,0.00080112]
[1767458955916,0.2466362,3109.4,3109.0,0.00080112]
[1767458956129,0.0013762,3109.4,3109.0,3.81240111]
[1767458957231,0.2596242,3109.4,3109.0,0.00080112]
[1767458961300,0.28335641,3109.3,3109.0,0.00080112]
[1767458965225,0.30733508,3109.2,3109.0,0.00080112]
[1767458965424,0.30733508,3109.2,3109.0,0.00180112]
[1767458967252,0.32029422,3109.4,3109.0,0.00180112]
[1767458969237,0.0013762,3109.4,3109.1,3.81159999]
[1767458969720,0.0013762,3109.4,3109.0,3.21825011]
[1767458969925,0.0013762,3109.4,3109.1,3.90101892]
[1767458970548,0.0013762,3109.4,3109.0,0.00180112]
[1767458971152,0.0013762,3109.4,3109.0,3.8291934]
[1767458972457,0.35891852,3109.4,3109.0,0.00180112]
[1767458972663,0.04020197,3109.3,3109.0,0.00180112]
[1767458972842,3.21617064,3109.3,3109.0,0.00180112]
[1767458973234,3.57896598,3109.3,3109.0,0.00180112]
[1767458973436,3.89580121,3109.3,3109.0,0.00180112]
[1767458973964,4.25859655,3109.3,3109.0,0.00180112]
[1767458974149,0.36617759,3109.2,3108.6,3.21762241]
[1767458974863,0.36617759,3109.2,3108.7,3.21675756]
[1767458975264,0.36617759,3109.2,3109.0,0.001]
[1767458977270,0.79259203,3109.2,3109.0,0.001]
[1767458978285,0.38636769,3109.1,3109.0,0.001]
[1767458978576,0.42657225,3109.1,3109.0,0.001]
[1767458978782,0.38636769,3109.1,3109.0,0.001]
[1767458979152,3.60273255,3109.1,3109.0,0.001]
[1767458979354,4.32728132,3109.1,3109.0,0.001]
[1767458984148,1.11091646,3109.1,3109.0,0.001]
[1767458984944,4.32728132,3109.1,3109.0,0.001]
[1767458985776,3.94091363,3109.1,3109.0,0.001]
[1767458988676,3.94091363,3109.1,3108.7,3.82739228]
[1767458988877,4.32042172,3109.1,3108.6,0.00080136]
[1767458989244,1.1754293,3109.0,3108.6,0.00080136]
[1767458990082,3.21667524,3108.8,3108.6,0.00080136]
[1767458990273,3.59496177,3108.8,3108.6,0.00080136]
[1767458991391,0.37828653,3108.8,3108.6,0.00080136]
[1767458992085,3.21661518,3108.9,3108.6,0.00080136]
[1767458992256,3.97726922,3108.9,3108.6,0.00080136]
[1767458995260,7.56911506,3108.9,3108.6,0.00080136]
[1767458999081,4.35249988,3108.9,3108.6,0.00080136]
[1767458999688,3.97726922,3108.9,3108.6,0.00080136]
[1767459000965,3.97726922,3108.9,3108.6,3.76993339]
[1767459001574,3.97726922,3108.9,3108.6,0.00080136]
[1767459001781,3.9732348,3108.8,3108.6,3.76993339]
[1767459001989,3.9732348,3108.8,3108.5,0.001]
[1767459002178,3.9732348,3108.8,3108.5,3.77013203]
[1767459002576,7.68987297,3108.8,3108.5,0.001]
[1767459002901,3.9732348,3108.8,3108.5,3.77013203]
[1767459003308,3.9732348,3108.8,3108.5,0.001]
[1767459003683,3.9732348,3108.8,3108.5,3.77013203]
[1767459003867,0.7189821,3108.7,3108.2,0.00080152]
[1767459004075,3.21673198,3108.8,3108.2,3.76993355]
[1767459005000,3.21673198,3108.8,3108.2,0.00080152]
[1767459005301,6.43346396,3108.8,3108.3,3.76913203]
[1767459005471,3.21673198,3108.8,3108.3,3.76913203]
[1767459005880,6.43318312,3108.9,3108.2,0.00080152]
[1767459006206,0.93685182,3108.8,3108.3,3.76913203]
[1767459006805,3.71663817,3108.7,3108.2,0.00080152]
[1767459006981,4.15362582,3108.8,3108.2,3.76993355]
[1767459007703,3.71663817,3108.7,3108.2,0.00080152]
[1767459007904,4.15362582,3108.8,3108.2,3.76993355]
[1767459008205,4.15362582,3108.8,3108.3,3.76913203]
[1767459008570,7.87026399,3108.8,3108.2,3.21808805]
[1767459008769,4.15362582,3108.8,3108.3,3.76913203]
[1767459009275,3.71663817,3108.7,3108.2,3.21808805]
[1767459009501,3.71663817,3108.7,3108.2,0.00080152]
[1767459009703,4.15362582,3108.8,3108.2,3.76993355]
[1767459010393,0.73701983,3108.7,3108.2,3.76993355]
[1767459010700,0.73701983,3108.7,3108.3,3.77013203]
[1767459011101,4.453658,3108.7,3108.3,0.001]
[1767459011289,0.73701983,3108.7,3108.3,3.77013203]
[1767459012004,0.73701983,3108.7,3108.3,0.001]
[1767459012196,0.73701983,3108.7,3108.4,3.76913203]
[1767459012596,3.95384249,3108.7,3108.4,3.76913203]
[1767459012797,3.95384249,3108.7,3108.3,0.001]
[1767459013319,0.73701983,3108.7,3108.3,3.77013203]
[1767459013624,0.73701983,3108.7,3108.3,0.001]
[1767459013780,0.73701983,3108.7,3108.3,3.77013203]
[1767459013975,0.73701983,3108.7,3108.3,3.21817335]
[1767459014183,0.93885182,3108.8,3108.4,3.76913203]
[1767459014404,0.002,3108.8,3108.3,3.21817335]
[1767459014607,0.002,3108.8,3108.3,0.001]
[1767459014802,0.002,3108.8,3108.3,3.77013203]
[1767459015311,3.71863817,3108.8,3108.3,0.001]
[1767459015515,0.002,3108.8,3108.3,3.77013203]
[1767459015698,3.21660451,3108.9,3108.8,3.76913203]
[1767459015903,3.21730587,3109.0,3108.3,0.001]
[1767459016104,3.21730587,3109.0,3108.3,3.77013203]
[1767459016616,10.15044855,3109.0,3108.3,3.77013203]
[1767459016997,3.71663817,3108.9,3108.3,0.001]
[1767459017192,3.71663817,3108.8,3108.3,0.001]
[1767459018982,3.21677871,3108.7,3108.3,0.001]
[1767459019188,3.71663817,3108.6,3108.3,0.001]
[1767459021098,3.71663817,3108.4,3108.3,0.001]
[1767459023591,6.93372734,3108.4,3108.3,0.001]
[1767459023794,7.94879119,3108.4,3108.3,0.001]
[1767459025699,3.71663817,3108.3,3107.9,0.001]
[1767459027928,3.21729618,3108.2,3107.9,0.001]
[1767459028230,3.21723814,3108.3,3107.9,3.77013203]
[1767459028827,6.93387631,3108.3,3107.9,0.001]
[1767459029031,4.33384158,3108.3,3108.0,3.76913203]
[1767459029327,1.11660344,3108.3,3108.0,3.76913203]
[1767459029529,3.21712845,3108.4,3107.9,0.001]
[1767459029832,3.21712845,3108.4,3108.0,3.87080561]
[1767459030129,3.21768371,3108.6,3108.0,3.87080561]
[1767459030327,3.84613904,3108.5,3107.9,0.001]
[1767459030531,6.4345659,3108.6,3107.9,4.15025446]
[1767459030827,0.64345659,3108.5,3107.9,4.15025446]
[1767459031216,0.64345659,3108.5,3107.9,0.001]
[1767459031417,0.64345659,3108.5,3107.9,4.15025446]
[1767459032028,4.48959563,3108.5,3107.9,0.001]
[1767459032204,3.21708917,3108.4,3107.9,4.15025446]
[1767459033240,3.21708917,3108.4,3108.0,4.14925446]
[1767459033407,0.00080152,3108.6,3107.9,0.001]
[1767459034132,0.00080152,3108.6,3107.9,0.01585505]
[1767459034304,0.00080152,3108.6,3108.1,0.01485505]
[1767459034834,0.00080152,3108.6,3108.0,3.21750321]
[1767459035039,3.84694056,3108.6,3108.1,0.64360895]
[1767459035230,0.00080152,3108.6,3108.2,0.0295425]
[1767459035846,0.00080152,3108.6,3108.1,3.86098052]
[1767459036345,0.00080152,3108.6,3108.2,0.04404991]
[1767459036531,0.002,3108.8,3108.4,0.04404991]
[1767459036909,0.002,3108.8,3108.2,0.0008016]
[1767459037212,0.002,3108.8,3108.3,0.05757812]
[1767459038058,3.84813904,3108.8,3108.3,3.21719267]
[1767459038453,0.002,3108.8,3108.4,0.07177565]
[1767459039041,0.002,3108.8,3108.4,0.08572738]
[1767459039568,3.21927358,3109.0,3108.6,0.08572738]
[1767459039757,7.06541262,3109.0,3108.3,3.21719267]
[1767459039954,3.84613904,3108.9,3108.3,3.93989382]
[1767459040163,3.21927358,3109.0,3108.4,0.09746991]
[1767459040367,3.21927358,3109.0,3108.5,0.09746991]
[1767459040569,7.06541262,3109.0,3108.4,3.21708632]
[1767459040745,3.84613904,3108.9,3108.4,3.21708632]
[1767459040950,0.00280136,3109.0,3108.5,0.09546991]
[1767459041675,3.8489404,3109.0,3108.4,3.86060472]
[1767459041843,0.00280136,3109.0,3108.5,0.10905152]
[1767459042243,0.00280136,3109.0,3108.5,3.3260351]
[1767459042471,0.00280136,3109.0,3108.6,0.12247957]
[1767459043171,3.8489404,3109.0,3108.5,3.21696499]
[1767459043351,0.00280136,3109.0,3108.6,0.13575218]
[1767459043969,3.8489404,3109.0,3108.5,3.92473072]
[1767459044274,0.00280136,3109.0,3108.6,0.14886162]
[1767459044770,3.8489404,3109.0,3108.5,3.92473072]
[1767459044974,0.00280136,3109.0,3108.6,0.14886162]
[1767459045352,0.002,3109.2,3108.6,0.40735923]
[1767459045543,0.002,3109.2,3108.6,6.43453095]
[1767459046044,3.926e-05,3109.2,3109.0,0.01299889]
[1767459046665,3.926e-05,3109.2,3108.8,3.21663227]
[1767459047041,3.926e-05,3109.2,3108.9,0.02387548]
[1767459047477,3.926e-05,3109.2,3108.8,3.21663227]
[1767459047646,3.926e-05,3109.2,3108.9,0.02387548]
[1767459048280,3.926e-05,3109.2,3108.8,3.86006037]
[1767459048976,3.926e-05,3109.2,3108.9,0.03657352]
[1767459049575,3.926e-05,3109.2,3108.8,3.90916889]
[1767459050262,3.8461783,3109.2,3108.8,3.86006037]
[1767459050464,3.8461783,3109.2,3108.8,0.6434281]
[1767459050773,3.926e-05,3109.2,3108.8,3.86009078]
[1767459050973,3.926e-05,3109.2,3108.9,0.39216114]
[1767459051863,3.926e-05,3109.2,3108.9,3.68253151]
[1767459052079,3.926e-05,3109.2,3109.0,0.08594148]
[1767459052372,3.926e-05,3109.2,3108.9,3.69466904]
[1767459053181,3.926e-05,3109.2,3108.9,3.60872756]
[1767459053482,3.926e-05,3109.2,3109.0,0.78047023]
[1767459053986,3.926e-05,3109.2,3109.0,3.89898482]
[1767459054984,3.926e-05,3109.2,3109.0,0.68253972]
[1767459055182,3.926e-05,3109.2,3108.9,3.60869414]
[1767459061371,3.926e-05,3109.2,3108.8,0.001]
[1767459065893,3.926e-05,3109.2,3108.8,0.24295811]
[1767459066260,3.926e-05,3109.2,3108.8,0.001]
[1767459066979,3.926e-05,3109.2,3108.8,0.25315095]
[1767459067560,3.926e-05,3109.2,3108.8,0.001]
[1767459067761,3.926e-05,3109.2,3108.9,0.26225698]
[1767459068261,3.926e-05,3109.2,3109.0,3.48868167]
[1767459068789,3.926e-05,3109.2,3109.0,3.21646831]
[1767459069359,3.926e-05,3109.2,3109.0,3.49853883]
[1767459069564,3.926e-05,3109.2,3109.0,3.21646831]
[1767459069985,3.926e-05,3109.2,3109.0,3.49853883]
[1767459070279,3.926e-05,3109.2,3109.0,4.23449848]
[1767459070484,3.926e-05,3109.2,3109.0,3.95242796]
[1767459071090,3.926e-05,3109.2,3109.0,4.25398425]
[1767459072193,3.926e-05,3109.2,3109.0,3.95242796]
[1767459072768,3.926e-05,3109.2,3109.0,4.2635012]
[1767459073119,3.926e-05,3109.2,3109.0,3.95242796]
[1767459073466,3.926e-05,3109.2,3109.0,4.27289159]
[1767459074161,3.926e-05,3109.2,3109.0,3.95242796]
[1767459074361,3.926e-05,3109.2,3109.1,3.93325776]
[1767459074572,0.00217732,3109.4,3109.1,4.26306469]
[1767459074975,0.00217732,3109.4,3109.1,3.93325776]
[1767459075388,0.00217732,3109.4,3109.1,4.27225268]
[1767459075762,0.00217732,3109.4,3109.1,3.93325776]
[1767459075990,0.00217732,3109.4,3109.1,3.21636486]
[1767459076672,4.09150915,3109.4,3109.1,3.21636486]
[1767459077089,0.00217732,3109.4,3109.1,3.57342249]
[1767459077695,4.09150915,3109.4,3109.1,3.21636486]
[1767459078109,0.00217732,3109.4,3109.0,0.36592677]
[1767459078606,4.09150915,3109.4,3108.9,6.43314354]
[1767459078914,0.00217732,3109.4,3109.0,0.36592677]
[1767459079377,0.00217732,3109.4,3108.9,6.43314354]
[1767459079709,0.00217732,3109.4,3108.9,7.14091355]
[1767459080089,0.00217732,3109.4,3109.0,0.38335906]
[1767459080491,4.09150915,3109.4,3108.9,7.14091355]
[1767459080895,0.00217732,3109.4,3108.9,7.52427261]
[1767459081206,0.00217732,3109.4,3109.0,0.39194764]
[1767459081377,0.00217732,3109.4,3108.9,7.14091355]
[1767459081581,0.00217732,3109.4,3108.9,7.53286119]
[1767459082318,4.09150915,3109.4,3108.9,7.14091355]
[1767459082484,0.00217732,3109.4,3109.0,0.40042498]
[1767459082983,0.00217732,3109.4,3108.9,7.14091355]
[1767459083412,4.09150915,3109.4,3108.9,7.14091355]
[1767459083713,0.00217732,3109.4,3108.9,7.54971169]
[1767459084016,4.09150915,3109.4,3108.9,7.14091355]
[1767459084212,4.09150915,3109.4,3108.9,6.43314354]
[1767459084419,0.00217732,3109.4,3109.0,0.41713668]
[1767459085016,0.00217732,3109.4,3108.9,6.43314354]
[1767459085219,0.00217732,3109.4,3108.9,10.49487619]
[1767459085516,0.00217732,3109.4,3109.0,4.06173265]
[1767459086701,4.09150915,3109.4,3108.9,6.43314354]
[1767459087005,0.00217732,3109.4,3109.0,4.06173265]
[1767459087722,4.09150915,3109.4,3108.9,7.54708682]
[1767459087925,0.00217732,3109.4,3108.9,7.54708682]
[1767459088406,0.00217732,3109.4,3109.1,7.27809751]
[1767459088593,0.00217732,3109.4,3109.1,3.21636486]
[1767459088794,0.00217732,3109.4,3109.1,7.27809751]
[1767459089623,0.002,3109.6,3109.2,4.06173265]
[1767459090198,4.2389055,3109.6,3109.1,3.21636486]
[1767459090398,4.2389055,3109.6,3109.0,6.43372381]
[1767459090715,0.002,3109.4,3109.1,4.24720057]
[1767459092100,0.002,3109.4,3109.0,7.25294618]
[1767459092315,0.002,3109.4,3109.1,4.24720057]
[1767459092534,0.002,3109.4,3109.2,3.21626141]
[1767459092831,0.002,3109.4,3109.2,7.46346198]
[1767459093031,0.002,3109.4,3109.3,1.06797947]
[1767459094035,0.002,3109.4,3109.3,4.28413744]
[1767459096308,0.002,3109.4,3109.0,6.43373782]
[1767459096894,4.5783874,3109.4,3109.0,6.43373782]
[1767459098231,4.5783874,3109.4,3109.0,0.0008012]
[1767459101733,0.002,3109.6,3109.0,0.0008012]
[1767459101907,4.5783874,3109.6,3109.0,0.0008012]
[1767459102108,4.5783874,3109.6,3109.0,1.06913642]
[1767459105045,0.002,3109.6,3109.1,3.21636486]
[1767459105212,4.5783874,3109.6,3109.1,3.21636486]
[1767459105924,0.002,3109.6,3109.1,7.46356543]
[1767459106130,0.002,3109.6,3109.2,4.24720057]
[1767459106938,0.002,3109.6,3109.1,6.43272972]
[1767459107141,0.002,3109.6,3109.1,7.60773639]
[1767459107343,0.002,3109.6,3109.2,4.24720057]
[1767459108162,4.5783874,3109.6,3109.2,3.21619294]
[1767459108322,0.002,3109.6,3109.2,3.21619294]
[1767459108524,0.002,3109.6,3109.3,4.24720057]
[1767459109346,4.5783874,3109.6,3109.2,3.21619294]
[1767459109551,0.002,3109.6,3109.3,4.24720057]
[1767459110520,4.5783874,3109.6,3109.0,0.0008012]
[1767459110715,0.002,3109.6,3109.0,4.24800177]
[1767459111351,0.002,3109.6,3109.2,4.24720057]
[1767459111752,0.002,3109.6,3109.2,3.21626141]
[1767459111931,0.002,3109.6,3109.2,7.46346198]
[1767459112748,0.002,3109.6,3109.3,4.24720057]
[1767459114325,0.002,3109.6,3109.2,3.21626141]
[1767459114535,0.002,3109.6,3109.3,3.21615501]
[1767459114737,0.002,3109.6,3109.4,4.24720057]
[1767459115337,0.002,3109.6,3109.2,3.21626141]
[1767459115535,0.002,3109.6,3109.3,4.24720057]
[1767459116440,0.002,3109.6,3109.2,7.54307544]
[1767459116640,0.002,3109.6,3109.3,4.24720057]
[1767459117565,0.002,3110.1,3109.9,4.24720057]
[1767459117863,0.002,3110.1,3109.4,3.21605454]
[1767459117864,0.002,3110.1,3109.6,4.24720057]
[1767459118333,0.002,3110.1,3109.5,0.00080112]
[1767459118538,1.07012496,3110.1,3109.5,0.00080112]
[1767459118739,0.002,3110.1,3109.6,4.24720057]
[1767459119366,3.21735907,3110.1,3109.6,4.24720057]
[1767459119738,0.002,3110.1,3109.6,4.24720057]
[1767459120474,0.002,3110.1,3109.6,4.24520057]
[1767459121758,1.14740834,3110.1,3109.5,0.00080112]
[1767459121960,0.002,3110.1,3109.6,4.50782305]
[1767459123161,0.002,3110.1,3109.5,0.00080112]
[1767459123366,0.002,3110.1,3109.6,4.50782305]
[1767459124179,1.19959742,3109.9,3109.5,0.00080112]
[1767459124477,3.21543408,3110.0,3109.5,0.00080112]
[1767459124674,3.21543408,3110.0,3109.1,4.50782305]
[1767459124675,4.674307,3109.9,3109.1,4.50782305]
[1767459124881,4.67510812,3109.9,3109.1,7.7241812]
[1767459125064,4.67510812,3109.9,3109.1,3.21635815]
[1767459125266,4.67510812,3109.9,3109.1,7.7241812]
[1767459125470,4.674307,3109.7,3109.1,4.50782305]
[1767459126047,3.21584769,3109.6,3109.0,0.0018012]
[1767459126589,3.21584769,3109.6,3109.0,4.50962425]
[1767459126982,7.89015469,3109.6,3109.0,4.50962425]
[1767459127164,4.674307,3109.5,3109.0,0.0018012]
[1767459127563,11.10600238,3109.6,3109.0,4.50962425]
[1767459127781,12.33409599,3109.6,3109.0,4.50962425]
[1767459128356,4.674307,3109.5,3109.0,0.0018012]
[1767459129781,9.1182483,3109.6,3109.0,0.0018012]
[1767459130183,9.1182483,3109.6,3109.0,4.50962425]
[1767459130357,7.89015469,3109.6,3109.0,7.7260849]
[1767459130558,4.674307,3109.5,3109.0,3.21826185]
[1767459130880,3.21584769,3109.6,3109.0,3.21826185]
[1767459131084,3.21584769,3109.6,3109.0,7.7260849]
[1767459131681,3.21574428,3109.7,3109.0,7.7260849]
[1767459131852,3.21574428,3109.7,3109.1,4.50782305]
[1767459132564,7.89005128,3109.7,3109.0,3.21826185]
[1767459132764,3.21574428,3109.7,3109.1,4.50782305]
[1767459133783,4.674307,3109.7,3109.0,4.31272751]
[1767459133979,4.676307,3109.7,3109.0,4.31272751]
[1767459134193,4.676307,3109.7,3109.0,8.82055056]
[1767459134483,0.002,3109.7,3109.1,4.50782305]
[1767459134855,0.002,3109.7,3109.0,4.31272751]
[1767459134856,4.676307,3109.7,3109.0,4.31272751]
[1767459135055,7.89212628,3109.7,3109.0,8.82055056]
[1767459135255,3.21781928,3109.7,3109.1,4.50782305]
[1767459135985,7.89212628,3109.7,3109.0,4.31272751]
[1767459136186,4.674307,3109.6,3109.0,4.31272751]
[1767459136368,3.21781928,3109.7,3109.1,4.50782305]
[1767459137163,4.674307,3109.6,3109.0,0.0018012]
[1767459137490,0.002,3109.7,3109.0,5.60410319]
[1767459138160,4.676307,3109.7,3109.0,5.60410319]
[1767459138485,0.002,3109.7,3109.0,5.60410319]
[1767459139373,4.674307,3109.6,3109.0,4.31266973]
[1767459139581,0.002,3109.7,3109.1,4.50782305]
[1767459140184,4.676307,3109.7,3109.0,4.31266973]
[1767459140481,0.002,3109.7,3109.1,4.50782305]
[1767459141285,4.676307,3109.7,3109.1,3.21636225]
[1767459141472,0.002,3109.7,3109.1,3.21636225]
[1767459141677,0.002,3109.7,3109.2,4.50782305]
[1767459142572,4.674307,3109.6,3109.0,7.72605783]
[1767459142772,3.21774428,3109.7,3109.1,4.50782305]
[1767459142961,6.43348856,3109.7,3109.1,4.50782305]
[1767459143168,4.674307,3109.6,3109.0,0.0018012]
[1767459143361,4.71450638,3109.5,3109.0,0.0018012]
[1767459143576,4.71450638,3109.5,3108.9,0.001]
[1767459143577,4.674307,3109.5,3108.9,0.001]
[1767459143775,5.78508656,3109.5,3108.9,0.001]
[1767459144768,3.21605454,3109.4,3108.9,0.001]
[1767459145068,3.21685574,3109.4,3108.9,0.001]
[1767459145882,4.674307,3109.3,3108.9,0.001]
[1767459146066,3.21685574,3109.4,3108.9,0.001]
[1767459147063,4.674307,3109.3,3108.9,0.001]
[1767459147390,0.0008012,3109.4,3108.9,0.001]
[1767459148595,0.0008012,3109.4,3108.9,4.50882305]
[1767459149288,0.0008012,3109.4,3108.9,0.001]
[1767459149464,0.0008012,3109.4,3108.9,4.50882305]
[1767459150267,4.68450531,3109.3,3108.9,0.001]
[1767459150595,0.0008012,3109.4,3108.9,4.83272845]
[1767459150893,0.0008012,3109.4,3108.9,8.04927846]
[1767459151292,0.0008012,3109.4,3108.9,11.26585023]
[1767459151471,0.0008012,3109.4,3109.0,1.12668502]
[1767459151677,0.0008012,3109.4,3108.9,11.26585023]
[1767459151878,0.0008012,3109.4,3109.0,4.83172845]
[1767459152584,0.002,3109.7,3108.9,11.26585023]
[1767459152792,0.002,3109.7,3109.0,4.83252973]
[1767459152976,0.002,3109.7,3109.1,1.12666515]
[1767459153177,3.21778839,3109.7,3109.1,1.12666515]
[1767459153378,7.88350123,3109.7,3109.1,4.34300086]
[1767459153579,7.88213454,3109.7,3109.1,4.34300086]
[1767459155774,0.00080112,3109.9,3109.2,4.83172845]
[1767459155998,0.00080112,3109.9,3109.3,6.07083787]
[1767459156679,0.00080112,3109.9,3109.4,4.83172845]
[1767459158383,0.00080112,3109.9,3109.5,3.21595111]
[1767459159301,0.00080112,3109.9,3109.5,8.04767956]
[1767459159691,0.00080112,3109.9,3109.5,3.21595111]
[1767459159894,0.00080112,3109.9,3109.6,0.32159511]
[1767459160492,0.00280112,3109.9,3109.6,0.32159511]
[1767459161513,0.00280112,3109.9,3109.6,3.53742116]
[1767459163621,0.00280112,3109.9,3109.6,0.32159511]
[1767459164087,4.66851396,3109.9,3109.5,3.21590471]
[1767459164717,0.00280112,3109.9,3109.5,4.83172845]
[1767459164883,0.002,3110.1,3109.8,4.83172845]
[1767459165411,0.002,3110.1,3109.5,4.83252965]
[1767459166689,0.002,3110.1,3109.6,3.21584769]
[1767459166890,0.002,3110.1,3109.7,4.83172845]
[1767459167715,0.002,3110.1,3109.6,4.34229088]
[1767459168020,0.002,3110.1,3109.7,4.83172845]
[1767459168518,0.002,3110.1,3109.6,4.34229088]
[1767459168818,0.002,3110.1,3109.7,4.83172845]
[1767459169200,0.002,3110.1,3109.8,4.83172845]
[1767459169516,0.002,3110.1,3109.7,1.23907694]
[1767459169894,0.002,3110.1,3109.8,4.83172845]
[1767459172919,0.002,3110.1,3109.6,3.21584769]
[1767459173094,0.002,3110.1,3109.7,4.83172845]
[1767459173929,0.002,3110.1,3109.5,4.83252965]
[1767459174229,0.002,3110.1,3109.6,5.31498142]
[1767459175106,0.002,3110.1,3109.7,3.21574428]
[1767459175304,0.002,3110.1,3109.8,4.83172845]
[1767459176204,0.002,3110.1,3109.6,3.21581079]
[1767459176406,0.002,3110.1,3109.7,4.83172845]
[1767459177131,0.002,3110.1,3109.8,4.83172845]
[1767459177436,0.002,3110.1,3109.7,8.98358949]
[1767459177641,0.002,3110.1,3109.8,4.83172845]
[1767459178428,0.002,3110.1,3109.7,4.15186104]
[1767459178743,0.002,3110.1,3109.7,8.98358949]
[1767459179426,0.002,3110.1,3109.7,4.15186104]
[1767459179627,0.002,3110.1,3109.8,4.83172845]
[1767459180508,5.33529901,3110.1,3109.7,4.15186104]
[1767459180829,0.002,3110.1,3109.7,9.2344356]
[1767459181036,0.002,3110.1,3109.7,6.01869272]
[1767459181611,0.002,3110.1,3109.7,0.93611816]
[1767459181827,0.002,3110.1,3109.7,5.08257456]
[1767459182622,5.33529901,3110.1,3109.6,3.21580983]
[1767459182829,0.002,3110.1,3109.6,5.08257456]
[1767459184826,0.002,3110.1,3109.5,3.21675231]
[1767459185138,0.002,3110.1,3109.6,5.08257456]
[1767459185333,0.002,3110.1,3109.6,6.24696968]
[1767459185838,0.002,3110.1,3109.6,1.16439512]
[1767459186140,0.002,3110.1,3109.7,5.08257456]
[1767459187011,0.002,3110.1,3109.6,4.38018201]
[1767459187408,0.002,3110.1,3109.6,9.46275657]
[1767459187620,0.002,3110.1,3109.7,5.08257456]
[1767459188138,0.002,3110.1,3109.6,4.38018201]
[1767459188334,0.002,3110.1,3109.7,5.08257456]
[1767459188531,0.002,3110.1,3109.5,8.30029878]
[1767459189312,0.002,3110.1,3109.5,0.0018012]
[1767459189652,0.002,3110.1,3109.6,5.08257456]
[1767459190010,0.002,3110.1,3109.5,0.0018012]
[1767459190411,5.33329901,3110.0,3109.5,0.0018012]
[1767459190814,0.002,3110.1,3109.5,0.0018012]
[1767459191016,1.17665547,3110.0,3109.5,0.0018012]
[1767459191440,4.39212313,3110.0,3109.5,0.0018012]
[1767459192520,5.33329901,3109.9,3109.5,0.0018012]
[1767459192843,9.72542214,3110.0,3109.5,0.0018012]
[1767459193344,4.39212313,3110.0,3109.5,0.0018012]
[1767459193715,5.33329901,3109.9,3109.5,0.0018012]
[1767459193919,3.21736128,3110.1,3109.5,5.08437576]
[1767459194520,0.002,3110.1,3109.5,5.08437576]
[1767459194920,5.33529901,3110.1,3109.5,0.0018012]
[1767459195155,0.85732531,3110.1,3109.6,5.08257456]
[1767459195352,0.002,3110.1,3109.6,5.08257456]
[1767459196015,0.002,3110.1,3109.5,0.0018012]
[1767459196227,0.002,3110.1,3109.6,5.08257456]
[1767459196919,0.002,3110.1,3109.5,0.0018012]
[1767459197118,0.002,3110.1,3109.6,5.08257456]
[1767459198018,0.002,3110.1,3109.5,0.0018012]
[1767459198214,0.002,3110.1,3109.5,8.30024333]
[1767459198646,0.002,3110.1,3109.6,5.08257456]
[1767459199052,0.002,3110.1,3109.5,6.43361988]
[1767459199256,0.002,3110.1,3109.6,5.72593655]
[1767459199458,0.002,3110.5,3109.9,5.08257456]
[1767459200162,0.002,3110.5,3109.8,0.00080112]
[1767459200163,5.33329901,3110.4,3109.8,0.00080112]
[1767459200322,0.002,3110.5,3109.8,6.43208286]
[1767459200523,0.002,3110.5,3109.9,5.08257456]
[1767459201134,5.33529901,3110.5,3109.8,6.43208286]
[1767459201323,0.002,3110.5,3109.9,5.08257456]
[1767459202131,0.002,3110.5,3110.0,3.21543408]
[1767459202949,0.002,3110.5,3109.8,8.29901655]